[Event "Titled Tuesday Blitz November 15 Early 2022"]
[White "Narayanan, Srinath"]
[Black "Ovchinnikov, Vsevolod"]
[WhiteFideId "5018420"]
[BlackFideId "24176842"]
[WhiteElo "2459"]
[BlackElo "2376"]
[Result "1-0"]
[Round "08"]
[TimeControl "180+1"]
[Date "2022.11.16"]
[WhiteClock "0:01:39"]
[BlackClock "0:00:03"]

1. d4 {[%clk 0:03:00]}  Nf6 {[%clk 0:02:58]} 2. c3 {[%clk 0:02:59]}  d5 {[%clk 0:02:57]} 3. Bf4 {[%clk 0:02:58]}  Nh5 {[%clk 0:02:57]} 4. Be5 {[%clk 0:02:56]}  Nd7 {[%clk 0:02:48]} 5. e3 {[%clk 0:02:55]}  Nxe5 {[%clk 0:02:43]} 6. dxe5 {[%clk 0:02:56]}  g6 {[%clk 0:02:43]} 7. c4 {[%clk 0:02:53]}  e6 {[%clk 0:02:37]} 8. Nc3 {[%clk 0:02:52]}  c6 {[%clk 0:02:36]} 9. f4 {[%clk 0:02:48]}  Qh4+ {[%clk 0:02:06]} 10. Kd2 {[%clk 0:02:47]}  Bc5 {[%clk 0:02:03]} 11. Qe1 {[%clk 0:02:43]}  Qd8 {[%clk 0:01:58]} 12. Kc2 {[%clk 0:02:42]}  f6 {[%clk 0:01:49]} 13. Nf3 {[%clk 0:02:41]}  a6 {[%clk 0:01:31]} 14. Rd1 {[%clk 0:02:40]}  b5 {[%clk 0:01:27]} 15. cxd5 {[%clk 0:02:38]}  cxd5 {[%clk 0:01:27]} 16. e4 {[%clk 0:02:38]}  d4 {[%clk 0:01:11]} 17. exf6 {[%clk 0:02:32]}  Bb7 {[%clk 0:00:55]} 18. f7+ {[%clk 0:02:27]}  Kxf7 {[%clk 0:00:52]} 19. f5 {[%clk 0:02:14]}  exf5 {[%clk 0:00:25]} 20. exf5 {[%clk 0:02:14]}  Re8 {[%clk 0:00:25]} 21. fxg6+ {[%clk 0:02:07]}  hxg6 {[%clk 0:00:25]} 22. Qf2 {[%clk 0:02:04]}  Qf6 {[%clk 0:00:20]} 23. Bd3 {[%clk 0:01:55]}  Bxf3 {[%clk 0:00:19]} 24. gxf3 {[%clk 0:01:53]}  dxc3 {[%clk 0:00:19]} 25. Qxc5 {[%clk 0:01:52]}  Rac8 {[%clk 0:00:19]} 26. Qd5+ {[%clk 0:01:51]}  Qe6 {[%clk 0:00:19]} 27. Bxg6+ {[%clk 0:01:41]}  Kxg6 {[%clk 0:00:03]} 28. Rhg1+ {[%clk 0:01:41]}  Kf6 {[%clk 0:00:02]} 29. Qg5+ {[%clk 0:01:41]}  Kf7 {[%clk 0:00:03]} 30. Qxh5+ {[%clk 0:01:40]}  Kf8 {[%clk 0:00:03]} 31. Qh8+ {[%clk 0:01:39]}  Ke7 {[%clk 0:00:03]} 32. Qg7+ {[%clk 0:01:39]}  Qf7 {[%clk 0:00:03]} 33. Rge1# {[%clk 0:01:39]} 1-0


[Site "https://www.chess.com"]

[Event "Titled Tuesday Blitz November 15 Early 2022"]
[White "Omariev, Maksim"]
[Black "Buscar, Michael"]
[WhiteFideId "4193423"]
[BlackFideId "2603616"]
[WhiteElo "2508"]
[BlackElo "2010"]
[Result "1-0"]
[Round "08"]
[TimeControl "180+1"]
[Date "2022.11.16"]
[WhiteClock "0:00:08"]
[BlackClock "0:00:09"]

1. g4 {[%clk 0:02:53]}  b5 {[%clk 0:02:57]} 2. Bg2 {[%clk 0:02:53]}  Nc6 {[%clk 0:02:56]} 3. d4 {[%clk 0:02:53]}  d5 {[%clk 0:02:54]} 4. Nc3 {[%clk 0:02:53]}  Bxg4 {[%clk 0:02:47]} 5. Nxd5 {[%clk 0:02:50]}  Bd7 {[%clk 0:02:34]} 6. Bf4 {[%clk 0:02:42]}  Rc8 {[%clk 0:02:26]} 7. Qd2 {[%clk 0:02:13]}  e6 {[%clk 0:02:24]} 8. Nc3 {[%clk 0:02:14]}  a6 {[%clk 0:02:19]} 9. e4 {[%clk 0:02:07]}  Bb4 {[%clk 0:02:16]} 10. Nge2 {[%clk 0:02:05]}  Nge7 {[%clk 0:02:10]} 11. a3 {[%clk 0:01:55]}  Ba5 {[%clk 0:02:10]} 12. b4 {[%clk 0:01:52]}  Bb6 {[%clk 0:02:10]} 13. d5 {[%clk 0:01:53]}  Nb8 {[%clk 0:01:57]} 14. Rd1 {[%clk 0:01:13]}  Ng6 {[%clk 0:01:38]} 15. Bg3 {[%clk 0:01:11]}  O-O {[%clk 0:01:38]} 16. h4 {[%clk 0:01:07]}  Re8 {[%clk 0:01:13]} 17. h5 {[%clk 0:01:06]}  Nf8 {[%clk 0:01:13]} 18. h6 {[%clk 0:00:43]}  g6 {[%clk 0:01:06]} 19. e5 {[%clk 0:00:33]}  f5 {[%clk 0:00:47]} 20. Bh4 {[%clk 0:00:28]}  Re7 {[%clk 0:00:40]} 21. d6 {[%clk 0:00:26]}  cxd6 {[%clk 0:00:40]} 22. exd6 {[%clk 0:00:27]}  Nc6 {[%clk 0:00:34]} 23. dxe7 {[%clk 0:00:25]}  Nxe7 {[%clk 0:00:35]} 24. Qd6 {[%clk 0:00:24]}  Kf7 {[%clk 0:00:27]} 25. Bxe7 {[%clk 0:00:21]}  Qxe7 {[%clk 0:00:26]} 26. Qxb6 {[%clk 0:00:21]}  Qg5 {[%clk 0:00:19]} 27. O-O {[%clk 0:00:18]}  Rc4 {[%clk 0:00:19]} 28. Qe3 {[%clk 0:00:16]}  Qh5 {[%clk 0:00:14]} 29. Qf3 {[%clk 0:00:13]}  Rg4 {[%clk 0:00:14]} 30. Ng3 {[%clk 0:00:11]}  Qg5 {[%clk 0:00:13]} 31. Nce2 {[%clk 0:00:07]}  Kg8 {[%clk 0:00:11]} 32. Rd6 {[%clk 0:00:07]}  f4 {[%clk 0:00:11]} 33. Ne4 {[%clk 0:00:06]}  Qh4 {[%clk 0:00:09]} 34. Qxg4 {[%clk 0:00:06]}  Qxg4 {[%clk 0:00:08]} 35. Nf6+ {[%clk 0:00:07]}  Kf7 {[%clk 0:00:09]} 36. Nxg4 {[%clk 0:00:08]}  Ke7 {[%clk 0:00:09]} 37. Rfd1 {[%clk 0:00:08]}  g5 {[%clk 0:00:09]} 38. Ne5 {[%clk 0:00:08]}  Be8 {[%clk 0:00:10]} 39. Nd4 {[%clk 0:00:08]}  Kf6 {[%clk 0:00:10]} 40. Nec6 {[%clk 0:00:07]}  Bh5 {[%clk 0:00:09]} 41. Rd2 {[%clk 0:00:07]}  Ng6 {[%clk 0:00:08]} 42. Rxe6+ {[%clk 0:00:08]}  Kf7 {[%clk 0:00:09]} 43. Rxg6 {[%clk 0:00:07]}  Bxg6 {[%clk 0:00:09]} 44. Bd5+ {[%clk 0:00:08]} 1-0


[Site "https://www.chess.com"]

[Event "Titled Tuesday Blitz November 15 Early 2022"]
[White "Oro, Faustino"]
[Black "Iturrizaga Bonelli, Eduardo"]
[WhiteFideId "20000197"]
[BlackFideId "3901211"]
[WhiteElo "2066"]
[BlackElo "2637"]
[Result "0-1"]
[Round "08"]
[TimeControl "180+1"]
[Date "2022.11.15"]
[WhiteClock "0:00:03"]
[BlackClock "0:01:15"]

1. e4 {[%clk 0:03:00]}  c5 {[%clk 0:03:00]} 2. Nf3 {[%clk 0:03:00]}  e6 {[%clk 0:03:00]} 3. c3 {[%clk 0:02:57]}  Nf6 {[%clk 0:02:59]} 4. e5 {[%clk 0:02:57]}  Nd5 {[%clk 0:03:00]} 5. d4 {[%clk 0:02:58]}  cxd4 {[%clk 0:03:00]} 6. cxd4 {[%clk 0:02:59]}  b6 {[%clk 0:03:00]} 7. Nc3 {[%clk 0:02:55]}  Bb7 {[%clk 0:03:01]} 8. Bd3 {[%clk 0:02:54]}  Be7 {[%clk 0:03:01]} 9. O-O {[%clk 0:02:54]}  Nxc3 {[%clk 0:03:00]} 10. bxc3 {[%clk 0:02:54]}  O-O {[%clk 0:03:01]} 11. Qe2 {[%clk 0:02:44]}  Nc6 {[%clk 0:02:58]} 12. Bd2 {[%clk 0:02:40]}  Rc8 {[%clk 0:02:58]} 13. Ne1 {[%clk 0:02:31]}  d6 {[%clk 0:02:57]} 14. exd6 {[%clk 0:02:31]}  Qxd6 {[%clk 0:02:56]} 15. Nc2 {[%clk 0:02:24]}  Rfd8 {[%clk 0:02:52]} 16. Rad1 {[%clk 0:02:14]}  Bf6 {[%clk 0:02:51]} 17. Ne3 {[%clk 0:02:12]}  Bg5 {[%clk 0:02:04]} 18. Nc4 {[%clk 0:01:51]}  Qe7 {[%clk 0:02:02]} 19. Rfe1 {[%clk 0:01:35]}  Bxd2 {[%clk 0:02:00]} 20. Nxd2 {[%clk 0:01:35]}  Na5 {[%clk 0:01:58]} 21. Rc1 {[%clk 0:01:28]}  Qg5 {[%clk 0:01:58]} 22. Be4 {[%clk 0:01:22]}  Bxe4 {[%clk 0:01:47]} 23. Nxe4 {[%clk 0:01:23]}  Qh6 {[%clk 0:01:47]} 24. Rc2 {[%clk 0:00:59]}  Nc4 {[%clk 0:01:41]} 25. Qd3 {[%clk 0:00:51]}  Rd5 {[%clk 0:01:38]} 26. Rce2 {[%clk 0:00:49]}  Qg6 {[%clk 0:01:35]} 27. h3 {[%clk 0:00:44]}  h6 {[%clk 0:01:35]} 28. Qf3 {[%clk 0:00:40]}  Rf5 {[%clk 0:01:33]} 29. Qg4 {[%clk 0:00:41]}  Qxg4 {[%clk 0:01:31]} 30. hxg4 {[%clk 0:00:42]}  Ra5 {[%clk 0:01:31]} 31. f3 {[%clk 0:00:38]}  Rc6 {[%clk 0:01:26]} 32. Kf2 {[%clk 0:00:37]}  Ra3 {[%clk 0:01:24]} 33. Rb1 {[%clk 0:00:36]}  Nd6 {[%clk 0:01:25]} 34. Nxd6 {[%clk 0:00:34]}  Rxd6 {[%clk 0:01:26]} 35. Rb3 {[%clk 0:00:35]}  Ra4 {[%clk 0:01:26]} 36. Ke3 {[%clk 0:00:33]}  Rd5 {[%clk 0:01:26]} 37. Kd3 {[%clk 0:00:33]}  Rda5 {[%clk 0:01:27]} 38. Rbb2 {[%clk 0:00:32]}  g5 {[%clk 0:01:26]} 39. Rec2 {[%clk 0:00:30]}  Ra3 {[%clk 0:01:25]} 40. Ke4 {[%clk 0:00:25]}  Kg7 {[%clk 0:01:24]} 41. Kd3 {[%clk 0:00:24]}  Kf6 {[%clk 0:01:24]} 42. Kd2 {[%clk 0:00:24]}  e5 {[%clk 0:01:23]} 43. dxe5+ {[%clk 0:00:23]}  Kxe5 {[%clk 0:01:24]} 44. Ke3 {[%clk 0:00:23]}  Kd5 {[%clk 0:01:20]} 45. Kd3 {[%clk 0:00:21]}  Ke6 {[%clk 0:01:20]} 46. Re2+ {[%clk 0:00:20]}  Kf6 {[%clk 0:01:19]} 47. Red2 {[%clk 0:00:18]}  Rd5+ {[%clk 0:01:19]} 48. Kc2 {[%clk 0:00:16]}  Rc5 {[%clk 0:01:18]} 49. Rd3 {[%clk 0:00:17]}  Ke5 {[%clk 0:01:18]} 50. Re3+ {[%clk 0:00:15]}  Kf4 {[%clk 0:01:18]} 51. Rd3 {[%clk 0:00:14]}  Kg3 {[%clk 0:01:18]} 52. Rd7 {[%clk 0:00:05]}  Raxc3+ {[%clk 0:01:18]} 53. Kd2 {[%clk 0:00:06]}  Kxg2 {[%clk 0:01:15]} 54. Rxf7 {[%clk 0:00:06]}  Rxf3 {[%clk 0:01:15]} 55. Rxf3 {[%clk 0:00:03]}  Kxf3 {[%clk 0:01:16]} 56. Rb4 {[%clk 0:00:04]}  Ra5 {[%clk 0:01:15]} 57. a4 {[%clk 0:00:03]}  Rd5+ {[%clk 0:01:15]} 58. Kc3 {[%clk 0:00:03]}  Ke3 {[%clk 0:01:15]} 59. Rb1 {[%clk 0:00:02]}  Rc5+ {[%clk 0:01:14]} 60. Kb4 {[%clk 0:00:02]}  Kf4 {[%clk 0:01:15]} 61. Rg1 {[%clk 0:00:03]}  Kf3 {[%clk 0:01:15]} 0-1


[Site "https://www.chess.com"]

[Event "Titled Tuesday Blitz November 15 Early 2022"]
[White "Orzech, Dominik"]
[Black "Ardila, Oscar Humberto"]
[WhiteFideId "1115065"]
[BlackFideId "4404742"]
[WhiteElo "2272"]
[BlackElo "1959"]
[Result "0-1"]
[Round "08"]
[TimeControl "180+1"]
[Date "2022.11.16"]
[WhiteClock "0:00:03"]
[BlackClock "0:01:12"]

1. g3 {[%clk 0:02:59]}  Nf6 {[%clk 0:02:59]} 2. Bg2 {[%clk 0:02:56]}  g6 {[%clk 0:02:47]} 3. c4 {[%clk 0:02:53]}  Bg7 {[%clk 0:02:47]} 4. Nc3 {[%clk 0:02:50]}  O-O {[%clk 0:02:47]} 5. d4 {[%clk 0:02:27]}  d6 {[%clk 0:02:47]} 6. Nf3 {[%clk 0:02:09]}  Nbd7 {[%clk 0:02:47]} 7. O-O {[%clk 0:01:53]}  c6 {[%clk 0:02:46]} 8. e4 {[%clk 0:01:37]}  e5 {[%clk 0:02:46]} 9. h3 {[%clk 0:01:21]}  Qc7 {[%clk 0:02:46]} 10. Re1 {[%clk 0:01:18]}  Re8 {[%clk 0:02:45]} 11. Be3 {[%clk 0:01:05]}  exd4 {[%clk 0:02:42]} 12. Nxd4 {[%clk 0:00:59]}  Nc5 {[%clk 0:02:42]} 13. Qc2 {[%clk 0:00:58]}  a5 {[%clk 0:02:42]} 14. Rad1 {[%clk 0:00:56]}  h5 {[%clk 0:02:40]} 15. f4 {[%clk 0:00:55]}  Bd7 {[%clk 0:02:35]} 16. Bf2 {[%clk 0:00:54]}  Rad8 {[%clk 0:02:34]} 17. Nb3 {[%clk 0:00:51]}  b6 {[%clk 0:02:25]} 18. Nd4 {[%clk 0:00:38]}  Nh7 {[%clk 0:02:07]} 19. Nf3 {[%clk 0:00:26]}  Bc8 {[%clk 0:02:03]} 20. Nb1 {[%clk 0:00:17]}  Nf6 {[%clk 0:01:55]} 21. Nbd2 {[%clk 0:00:16]}  Ba6 {[%clk 0:01:50]} 22. Ng5 {[%clk 0:00:14]}  Nh7 {[%clk 0:01:45]} 23. Nxh7 {[%clk 0:00:13]}  Kxh7 {[%clk 0:01:45]} 24. Nf3 {[%clk 0:00:14]}  Kg8 {[%clk 0:01:43]} 25. Ng5 {[%clk 0:00:11]}  Ne6 {[%clk 0:01:41]} 26. Nf3 {[%clk 0:00:11]}  Qe7 {[%clk 0:01:30]} 27. b3 {[%clk 0:00:08]}  Nc5 {[%clk 0:01:29]} 28. Ng5 {[%clk 0:00:07]}  Qf6 {[%clk 0:01:19]} 29. Nf3 {[%clk 0:00:04]}  Qc3 {[%clk 0:01:17]} 30. Qb1 {[%clk 0:00:03]}  d5 {[%clk 0:01:12]} 0-1


[Site "https://www.chess.com"]

[Event "Titled Tuesday Blitz November 15 Early 2022"]
[White "Paravyan, David"]
[Black "Willow, Jonah B"]
[WhiteFideId "4194985"]
[BlackFideId "438804"]
[WhiteElo "2546"]
[BlackElo "2300"]
[Result "1-0"]
[Round "08"]
[TimeControl "180+1"]
[Date "2022.11.15"]
[WhiteClock "0:00:09"]
[BlackClock "0:00:05"]

1. e4 {[%clk 0:03:00]}  c5 {[%clk 0:02:59]} 2. Nf3 {[%clk 0:03:00]}  e6 {[%clk 0:02:58]} 3. d4 {[%clk 0:03:01]}  cxd4 {[%clk 0:02:59]} 4. Nxd4 {[%clk 0:03:02]}  Nc6 {[%clk 0:03:00]} 5. Nc3 {[%clk 0:03:02]}  Qc7 {[%clk 0:03:00]} 6. Nxc6 {[%clk 0:03:01]}  bxc6 {[%clk 0:02:56]} 7. Bd3 {[%clk 0:03:02]}  d5 {[%clk 0:02:44]} 8. Qe2 {[%clk 0:03:01]}  Be7 {[%clk 0:02:31]} 9. e5 {[%clk 0:02:59]}  Nh6 {[%clk 0:02:23]} 10. Bxh6 {[%clk 0:02:43]}  gxh6 {[%clk 0:02:24]} 11. O-O {[%clk 0:02:43]}  Rb8 {[%clk 0:02:21]} 12. Nd1 {[%clk 0:02:42]}  c5 {[%clk 0:02:19]} 13. b3 {[%clk 0:02:39]}  Rg8 {[%clk 0:02:08]} 14. f4 {[%clk 0:02:34]}  Bb7 {[%clk 0:02:04]} 15. g3 {[%clk 0:02:15]}  c4 {[%clk 0:02:01]} 16. bxc4 {[%clk 0:02:16]}  dxc4 {[%clk 0:02:02]} 17. Be4 {[%clk 0:02:14]}  Bc5+ {[%clk 0:01:58]} 18. Kg2 {[%clk 0:02:12]}  Bd4 {[%clk 0:01:47]} 19. c3 {[%clk 0:02:06]}  Bb6 {[%clk 0:01:42]} 20. Nb2 {[%clk 0:01:58]}  Rc8 {[%clk 0:01:28]} 21. Rfd1 {[%clk 0:01:52]}  Ba5 {[%clk 0:01:26]} 22. Rac1 {[%clk 0:01:48]}  Bc6 {[%clk 0:01:25]} 23. Rd4 {[%clk 0:01:44]}  Qb7 {[%clk 0:01:20]} 24. Nxc4 {[%clk 0:01:41]}  Bc7 {[%clk 0:01:03]} 25. Kh3 {[%clk 0:01:30]}  Bxe4 {[%clk 0:01:00]} 26. Rxe4 {[%clk 0:01:27]}  Ke7 {[%clk 0:00:57]} 27. Rf1 {[%clk 0:01:20]}  Bb8 {[%clk 0:00:52]} 28. Rd4 {[%clk 0:01:11]}  Rgd8 {[%clk 0:00:50]} 29. Ne3 {[%clk 0:00:41]}  Rxd4 {[%clk 0:00:42]} 30. cxd4 {[%clk 0:00:42]}  Qe4 {[%clk 0:00:42]} 31. d5 {[%clk 0:00:28]}  exd5 {[%clk 0:00:37]} 32. Qg4 {[%clk 0:00:23]}  Rf8 {[%clk 0:00:07]} 33. Nf5+ {[%clk 0:00:22]}  Ke8 {[%clk 0:00:05]} 34. Ng7+ {[%clk 0:00:20]}  Ke7 {[%clk 0:00:05]} 35. Nh5 {[%clk 0:00:20]}  Qg6 {[%clk 0:00:04]} 36. Nf6 {[%clk 0:00:11]}  Qxg4+ {[%clk 0:00:03]} 37. Kxg4 {[%clk 0:00:12]}  d4 {[%clk 0:00:03]} 38. Rb1 {[%clk 0:00:11]}  Rc8 {[%clk 0:00:01]} 39. Rb7+ {[%clk 0:00:11]}  Kf8 {[%clk 0:00:01]} 40. Rxb8 {[%clk 0:00:07]}  Rxb8 {[%clk 0:00:01]} 41. Nd7+ {[%clk 0:00:07]}  Ke7 {[%clk 0:00:02]} 42. Nxb8 {[%clk 0:00:08]}  d3 {[%clk 0:00:03]} 43. Kf3 {[%clk 0:00:08]}  Kd8 {[%clk 0:00:04]} 44. Nc6+ {[%clk 0:00:08]}  Kc7 {[%clk 0:00:05]} 45. Nb4 {[%clk 0:00:09]} 1-0


[Site "https://www.chess.com"]

[Event "Titled Tuesday Blitz November 15 Early 2022"]
[White "Parligras, Mircea-Emilian"]
[Black "Manukyan, Sargis A."]
[WhiteFideId "1204297"]
[BlackFideId "13303970"]
[WhiteElo "2507"]
[BlackElo "2187"]
[Result "1/2-1/2"]
[Round "08"]
[TimeControl "180+1"]
[Date "2022.11.16"]
[WhiteClock "0:00:45"]
[BlackClock "0:00:51"]

1. d4 {[%clk 0:02:59]}  c5 {[%clk 0:02:58]} 2. d5 {[%clk 0:02:59]}  e6 {[%clk 0:02:55]} 3. c4 {[%clk 0:02:57]}  exd5 {[%clk 0:02:55]} 4. cxd5 {[%clk 0:02:58]}  a6 {[%clk 0:02:55]} 5. a4 {[%clk 0:02:58]}  d6 {[%clk 0:02:54]} 6. Nc3 {[%clk 0:02:57]}  Ne7 {[%clk 0:02:55]} 7. g3 {[%clk 0:02:56]}  Ng6 {[%clk 0:02:55]} 8. Bg2 {[%clk 0:02:56]}  Be7 {[%clk 0:02:55]} 9. Nf3 {[%clk 0:02:53]}  Nd7 {[%clk 0:02:55]} 10. O-O {[%clk 0:02:53]}  Rb8 {[%clk 0:02:54]} 11. a5 {[%clk 0:02:50]}  O-O {[%clk 0:02:54]} 12. Nd2 {[%clk 0:02:47]}  Re8 {[%clk 0:02:51]} 13. f4 {[%clk 0:02:44]}  b5 {[%clk 0:02:38]} 14. axb6 {[%clk 0:02:43]}  Rxb6 {[%clk 0:02:30]} 15. Nc4 {[%clk 0:02:35]}  Rb4 {[%clk 0:02:29]} 16. Na5 {[%clk 0:02:34]}  Bf6 {[%clk 0:02:07]} 17. Nc6 {[%clk 0:02:33]}  Qb6 {[%clk 0:02:06]} 18. Kh1 {[%clk 0:02:15]}  Bxc3 {[%clk 0:01:51]} 19. bxc3 {[%clk 0:02:13]}  Rb1 {[%clk 0:01:51]} 20. Rxb1 {[%clk 0:02:09]}  Qxb1 {[%clk 0:01:52]} 21. Qd3 {[%clk 0:01:50]}  Qa2 {[%clk 0:01:34]} 22. e4 {[%clk 0:01:43]}  c4 {[%clk 0:01:26]} 23. Qd4 {[%clk 0:01:42]}  Nc5 {[%clk 0:01:23]} 24. Be3 {[%clk 0:01:32]}  Qe2 {[%clk 0:01:15]} 25. Kg1 {[%clk 0:01:19]}  Nxe4 {[%clk 0:00:57]} 26. Bxe4 {[%clk 0:01:17]}  f5 {[%clk 0:00:57]} 27. Rf2 {[%clk 0:01:06]}  Qe1+ {[%clk 0:00:52]} 28. Rf1 {[%clk 0:01:06]}  Qe2 {[%clk 0:00:52]} 29. Rf2 {[%clk 0:00:45]}  Qe1+ {[%clk 0:00:51]} 30. Rf1 {[%clk 0:00:45]}  Qe2 {[%clk 0:00:51]} 1/2-1/2


[Site "https://www.chess.com"]

[Event "Titled Tuesday Blitz November 15 Early 2022"]
[White "Pg, Mohd Omar Ak Hira"]
[Black "Cramling Bellon, Anna"]
[WhiteFideId "10500103"]
[BlackFideId "32009232"]
[WhiteElo "2184"]
[BlackElo "1972"]
[Result "1-0"]
[Round "08"]
[TimeControl "180+1"]
[Date "2022.11.16"]
[WhiteClock "0:00:35"]
[BlackClock "0:00:02"]

1. e4 {[%clk 0:02:59]}  c5 {[%clk 0:02:51]} 2. Nf3 {[%clk 0:02:58]}  e6 {[%clk 0:02:47]} 3. d4 {[%clk 0:02:57]}  cxd4 {[%clk 0:02:47]} 4. Nxd4 {[%clk 0:02:58]}  Nf6 {[%clk 0:02:47]} 5. Nc3 {[%clk 0:02:58]}  Nc6 {[%clk 0:02:46]} 6. Ndb5 {[%clk 0:02:54]}  d6 {[%clk 0:02:42]} 7. Be2 {[%clk 0:02:41]}  a6 {[%clk 0:02:39]} 8. Na3 {[%clk 0:02:40]}  b5 {[%clk 0:02:39]} 9. Nab1 {[%clk 0:02:31]}  b4 {[%clk 0:02:22]} 10. Na4 {[%clk 0:02:30]}  Nxe4 {[%clk 0:02:19]} 11. Bf3 {[%clk 0:02:28]}  f5 {[%clk 0:01:36]} 12. Bxe4 {[%clk 0:02:21]}  fxe4 {[%clk 0:01:36]} 13. Be3 {[%clk 0:02:09]}  d5 {[%clk 0:01:15]} 14. O-O {[%clk 0:01:40]}  Be7 {[%clk 0:01:15]} 15. Qh5+ {[%clk 0:01:24]}  g6 {[%clk 0:01:15]} 16. Qh6 {[%clk 0:01:24]}  Ne5 {[%clk 0:00:48]} 17. Bd4 {[%clk 0:01:20]}  Bf6 {[%clk 0:00:48]} 18. c3 {[%clk 0:01:11]}  Nf7 {[%clk 0:00:30]} 19. Qe3 {[%clk 0:01:01]}  Bxd4 {[%clk 0:00:23]} 20. Qxd4 {[%clk 0:01:01]}  O-O {[%clk 0:00:19]} 21. Qxb4 {[%clk 0:00:57]}  Bd7 {[%clk 0:00:13]} 22. Nc5 {[%clk 0:00:54]}  Rb8 {[%clk 0:00:12]} 23. Qd4 {[%clk 0:00:54]}  Rxb2 {[%clk 0:00:05]} 24. c4 {[%clk 0:00:41]}  Rb4 {[%clk 0:00:05]} 25. Nd2 {[%clk 0:00:41]}  Qe7 {[%clk 0:00:05]} 26. a3 {[%clk 0:00:40]}  Rbb8 {[%clk 0:00:04]} 27. cxd5 {[%clk 0:00:40]}  exd5 {[%clk 0:00:04]} 28. Qxd5 {[%clk 0:00:40]}  Rfd8 {[%clk 0:00:04]} 29. Nxd7 {[%clk 0:00:36]}  Rxd7 {[%clk 0:00:04]} 30. Qxe4 {[%clk 0:00:35]}  Qxe4 {[%clk 0:00:04]} 31. Nxe4 {[%clk 0:00:35]}  Re8 {[%clk 0:00:04]} 32. Nf6+ {[%clk 0:00:35]}  Kf8 {[%clk 0:00:03]} 33. Nxd7+ {[%clk 0:00:35]}  Ke7 {[%clk 0:00:02]} 34. Nc5 {[%clk 0:00:36]}  Rc8 {[%clk 0:00:02]} 35. Nxa6 {[%clk 0:00:36]}  Rc6 {[%clk 0:00:02]} 36. Nb4 {[%clk 0:00:35]}  Rb6 {[%clk 0:00:02]} 37. Rfe1+ {[%clk 0:00:36]}  Kd6 {[%clk 0:00:02]} 38. Rad1+ {[%clk 0:00:35]}  Kc7 {[%clk 0:00:02]} 39. Nd5+ {[%clk 0:00:35]} 1-0


[Site "https://www.chess.com"]

[Event "Titled Tuesday Blitz November 15 Early 2022"]
[White "Pranav, V"]
[Black "Bacrot, Etienne"]
[WhiteFideId "25060783"]
[BlackFideId "605506"]
[WhiteElo "2430"]
[BlackElo "2666"]
[Result "0-1"]
[Round "08"]
[TimeControl "180+1"]
[Date "2022.11.15"]
[WhiteClock "0:00:12"]
[BlackClock "0:00:51"]

1. e4 {[%clk 0:03:00]}  c5 {[%clk 0:03:00]} 2. Nf3 {[%clk 0:03:01]}  d6 {[%clk 0:03:01]} 3. d4 {[%clk 0:03:01]}  cxd4 {[%clk 0:03:00]} 4. Nxd4 {[%clk 0:03:02]}  Nf6 {[%clk 0:03:01]} 5. Nc3 {[%clk 0:03:02]}  Nc6 {[%clk 0:03:02]} 6. Bc4 {[%clk 0:03:02]}  Qb6 {[%clk 0:02:58]} 7. Nb3 {[%clk 0:03:01]}  e6 {[%clk 0:02:57]} 8. O-O {[%clk 0:03:01]}  a6 {[%clk 0:02:57]} 9. Be3 {[%clk 0:03:01]}  Qc7 {[%clk 0:02:57]} 10. f4 {[%clk 0:03:01]}  Be7 {[%clk 0:02:57]} 11. Bd3 {[%clk 0:03:01]}  b5 {[%clk 0:02:56]} 12. g4 {[%clk 0:02:53]}  h5 {[%clk 0:02:53]} 13. g5 {[%clk 0:02:29]}  Ng4 {[%clk 0:02:53]} 14. Bf2 {[%clk 0:02:17]}  b4 {[%clk 0:02:22]} 15. Ne2 {[%clk 0:02:15]}  e5 {[%clk 0:02:23]} 16. h4 {[%clk 0:02:10]}  f6 {[%clk 0:01:59]} 17. Bc4 {[%clk 0:02:02]}  exf4 {[%clk 0:01:48]} 18. Nxf4 {[%clk 0:02:01]}  d5 {[%clk 0:01:43]} 19. Qxd5 {[%clk 0:00:39]}  Qxf4 {[%clk 0:01:43]} 20. Qxc6+ {[%clk 0:00:39]}  Kf8 {[%clk 0:01:41]} 21. Kg2 {[%clk 0:00:32]}  Qh2+ {[%clk 0:01:39]} 22. Kf3 {[%clk 0:00:32]}  Ne5+ {[%clk 0:01:39]} 23. Ke3 {[%clk 0:00:30]}  Nxc6 {[%clk 0:01:34]} 24. Bd5 {[%clk 0:00:31]}  Bb7 {[%clk 0:01:24]} 25. gxf6 {[%clk 0:00:29]}  gxf6 {[%clk 0:01:22]} 26. Rg1 {[%clk 0:00:27]}  Bd6 {[%clk 0:01:17]} 27. Rg6 {[%clk 0:00:24]}  Qf4+ {[%clk 0:01:14]} 28. Ke2 {[%clk 0:00:23]}  Nd8 {[%clk 0:01:06]} 29. Be3 {[%clk 0:00:16]}  Qh2+ {[%clk 0:01:06]} 30. Kd3 {[%clk 0:00:15]}  Bxd5 {[%clk 0:01:05]} 31. exd5 {[%clk 0:00:16]}  Qe5 {[%clk 0:01:01]} 32. Rf1 {[%clk 0:00:15]}  Qxd5+ {[%clk 0:01:00]} 33. Ke2 {[%clk 0:00:12]}  Be5 {[%clk 0:00:53]} 34. Bc5+ {[%clk 0:00:12]}  Kf7 {[%clk 0:00:51]} 0-1


[Site "https://www.chess.com"]